fUST/lending_fUST_20240227
["ID","MTS","AMOUNT","RATE_DAILY","PERIOD"]
[315422320,1709023846468,-933.9189074,0.000199,2]
[315422322,1709023846477,-243.1936975,0.00019918,2]
[315422324,1709023846486,-153.0,0.00019918,2]
[315422326,1709023846495,-153.0,0.00019918,2]
[315422328,1709023846504,-153.0,0.00019918,2]
[315422330,1709023846514,-153.0,0.00019918,2]
[315422332,1709023846523,-153.0,0.00019918,2]
[315422334,1709023846532,-153.0,0.00019918,2]
[315422335,1709023846542,-153.0,0.00019918,2]
[315422337,1709023846551,-153.0,0.00019918,2]
[315422339,1709023846561,-153.0,0.00019918,2]
[315422341,1709023846571,-153.0,0.00019918,2]
[315422343,1709023846581,-153.0,0.00019918,2]
[315422345,1709023846590,-1431.54331277,0.00019921,2]
[315422347,1709023846600,-200.6117409,0.00019959,2]
[315422349,1709023846609,-200.6117409,0.00019959,2]
[315422351,1709023846619,-200.6117409,0.00019959,2]
[315422353,1709023846628,-200.6117409,0.00019959,2]
[315422355,1709023846637,-200.6117409,0.00019959,2]
[315422357,1709023846649,-160.0,0.00019999,2]
[315422359,1709023846659,-1092.77,0.00019999,2]
[315422361,1709023846668,-1092.77,0.00019999,2]
[315422363,1709023846678,-1092.77,0.00019999,2]
[315422365,1709023846687,-1092.77,0.00019999,2]
[315422367,1709023846696,-1092.77,0.00019999,2]
[315422369,1709023846705,-1092.86258347,0.00019999,2]
[315422371,1709023846714,-195.0,0.00019999,2]
[315422373,1709023846723,-255.0,0.00019999,2]
[315422375,1709023846732,-300.0,0.00019999,2]
[315422377,1709023846740,-500.0,0.00019999,2]
[315422379,1709023846750,-500.0,0.00019999,2]
[315422381,1709023846759,-484.56553213,0.00019999,2]
[315422383,1709023846768,-500.0,0.00019999,2]
[315422385,1709023846781,-500.0,0.00019999,2]
[315422387,1709023846790,-366.60057906,0.00019999,2]
[315422388,1709023846800,-165.77849234,0.00019999,2]
[315422390,1709023846812,-613.28919721,0.00019999,2]
[315422391,1709023846821,-296967.20002095,0.0002,2]
[315422411,1709023847017,-9421.8056164,0.0002,2]
[315422413,1709023847028,-297626.24785226,0.0002,2]
[315422468,1709023847582,-153.0,0.0001937,2]
[315422470,1709023847592,-153.0,0.0001937,2]
[315422472,1709023847601,-4784.0,0.0002,2]
[315423252,1709024290722,-690.06,0.00018049,2]
[315423301,1709025032133,-1002.5835889,0.00017777,2]
[315423303,1709025032143,-1732.04174175,0.00017777,2]
[315423309,1709025032191,-2665.29195615,0.00017777,2]
[315423311,1709025032200,-1375.56766512,0.00017777,2]
[315423313,1709025032212,-392.18930108,0.00017777,2]
[315423328,1709025032347,-250.0,0.00017879,2]
[315423330,1709025032357,-241.0125324,0.00018163,2]
[315423332,1709025032367,-791.55848072,0.000189,2]
[315423334,1709025032376,-10000.0,0.00019,2]
[315423336,1709025032386,-169.60667005,0.00019,2]
[315423338,1709025032395,-483.22695378,0.00019,2]
[315423481,1709025038129,-263.90817214,0.00019,2]
[315423482,1709025038138,-153.0,0.00019041,2]
[315423484,1709025038147,-310.00569698,0.00019076,2]
[315423487,1709025038157,-486.79569354,0.00019077,2]
[315423488,1709025038166,-276000.0,0.00019078,2]
[315423490,1709025038175,-155.44432333,0.000191,2]
[315423492,1709025038185,-153.0,0.000191,2]
[315423494,1709025038193,-153.0,0.000191,2]
[315423496,1709025038202,-153.0,0.000191,2]
[315423499,1709025038211,-153.0,0.000191,2]
[315423502,1709025038220,-153.0,0.000191,2]
[315423504,1709025038229,-1213.09168547,0.00019177,2]
[315423506,1709025038238,-500.0,0.00019178,2]
[315423508,1709025038247,-500.0,0.00019178,2]
[315423510,1709025038256,-500.0,0.00019178,2]
[315423512,1709025038265,-500.0,0.00019178,2]
[315423513,1709025038274,-1192.66,0.00019178,2]
[315423514,1709025038283,-500.0,0.00019178,2]
[315423516,1709025038292,-593.2402925,0.00019178,2]
[315423518,1709025038301,-500.0,0.00019178,2]
[315423520,1709025038310,-500.0,0.00019178,2]
[315423522,1709025038319,-500.0,0.00019178,2]
[315423524,1709025038328,-235.52195681,0.00019178,2]
[315423526,1709025038337,-500.0,0.00019178,2]
[315423527,1709025038346,-500.0,0.00019178,2]
[315423529,1709025038355,-500.0,0.00019178,2]
[315423531,1709025038364,-500.0,0.00019178,2]
[315423533,1709025038373,-500.0,0.00019178,2]
[315423535,1709025038382,-500.0,0.00019178,2]
[315423537,1709025038391,-500.0,0.00019178,2]
[315423539,1709025038401,-336.01860419,0.00019178,2]
[315423541,1709025038411,-501.00933044,0.00019178,2]
[315423543,1709025038421,-671.93,0.00019178,2]
[315423545,1709025038430,-1422.92,0.00019178,2]
[315423547,1709025038440,-500.0,0.00019178,2]
[315423549,1709025038449,-500.0,0.00019178,2]
[315423550,1709025038458,-500.0,0.00019178,2]
[315423552,1709025038467,-745.35,0.00019178,2]
[315423554,1709025038477,-559.55,0.00019178,2]
[315423556,1709025038488,-500.0,0.00019178,2]
[315423559,1709025038500,-500.0,0.00019178,2]
[315423561,1709025038509,-500.0,0.00019178,2]
[315423563,1709025038522,-377.54615885,0.00019178,2]
[315423565,1709025038531,-500.0,0.00019178,2]
[315423567,1709025038541,-500.0,0.00019178,2]
[315423568,1709025038552,-500.0,0.00019178,2]
[315423570,1709025038561,-500.0,0.00019178,2]
[315423573,1709025038573,-500.0,0.00019178,2]
[315423575,1709025038582,-500.0,0.00019178,2]
[315423577,1709025038592,-606.64,0.00019178,2]
[315423578,1709025038601,-507.42166358,0.00019178,2]
[315423580,1709025038611,-540.2,0.00019178,2]
[315423582,1709025038620,-1246.71,0.00019178,2]
[315423584,1709025038629,-500.0,0.00019178,2]
[315423586,1709025038638,-500.0,0.00019178,2]
[315423588,1709025038647,-500.0,0.00019178,2]
[315423590,1709025038657,-500.0,0.00019178,2]
[315423592,1709025038666,-255.55957885,0.00019178,2]
[315423595,1709025038677,-500.0,0.00019178,2]
[315423596,1709025038686,-212.44196053,0.00019178,2]
[315423599,1709025038696,-1527.96,0.00019178,2]
[315423600,1709025038705,-500.0,0.00019178,2]
[315423602,1709025038713,-500.0,0.00019178,2]
[315423604,1709025038722,-1428.93,0.00019178,2]
[315423606,1709025038731,-500.0,0.00019178,2]
[315423608,1709025038740,-500.0,0.00019178,2]
[315423610,1709025038749,-500.0,0.00019178,2]
[315423612,1709025038758,-500.0,0.00019178,2]
[315423614,1709025038767,-500.0,0.00019178,2]
[315423616,1709025038776,-500.0,0.00019178,2]
[315423618,1709025038785,-500.0,0.00019178,2]
[315423620,1709025038794,-500.0,0.00019178,2]
[315423622,1709025038803,-500.0,0.00019178,2]
[315423624,1709025038812,-315.7665185,0.00019178,2]
[315423626,1709025038821,-883.11,0.00019178,2]
[315423628,1709025038830,-500.0,0.00019178,2]
[315423630,1709025038839,-410.10016763,0.00019178,2]
[315423632,1709025038848,-282.6196593,0.00019178,2]
[315423634,1709025038856,-500.0,0.00019178,2]
[315423636,1709025038865,-500.0,0.00019178,2]
[315423638,1709025038874,-500.0,0.00019178,2]
[315423639,1709025038883,-155.0,0.00019178,2]
[315423641,1709025038892,-500.0,0.00019178,2]
[315423644,1709025038902,-500.0,0.00019178,2]
[315423646,1709025038911,-500.0,0.00019178,2]
[315423647,1709025038921,-609.97,0.00019178,2]
[315423649,1709025038930,-500.0,0.00019178,2]
[315423652,1709025038940,-500.0,0.00019178,2]
[315423653,1709025038949,-500.0,0.00019178,2]
[315423655,1709025038958,-802.54,0.00019178,2]
[315423657,1709025038967,-1552.8,0.00019178,2]
[315423659,1709025038976,-500.0,0.00019178,2]
[315423661,1709025038985,-2270.51,0.00019178,2]
[315423663,1709025038994,-500.0,0.00019178,2]
[315423665,1709025039003,-500.0,0.00019178,2]
[315423667,1709025039012,-501.29042956,0.00019178,2]
[315423669,1709025039021,-500.0,0.00019178,2]
[315423671,1709025039030,-700.38,0.00019178,2]
[315423673,1709025039039,-1290.74,0.00019178,2]
[315423675,1709025039048,-1738.0,0.00019178,2]
[315423677,1709025039058,-500.0,0.00019178,2]
[315423679,1709025039067,-500.0,0.00019178,2]
[315423681,1709025039076,-500.0,0.00019178,2]
[315423683,1709025039085,-1276.96,0.00019178,2]
[315423685,1709025039094,-1000.0,0.00019178,2]
[315423687,1709025039103,-8600.21,0.00019178,2]
[315423689,1709025039112,-500.0,0.00019178,2]
[315423691,1709025039120,-500.0,0.00019178,2]
[315423693,1709025039130,-3327.33,0.00019178,2]
[315423695,1709025039139,-500.0,0.00019178,2]
[315423697,1709025039150,-500.0,0.00019178,2]
[315423700,1709025039160,-500.0,0.00019178,2]
[315423701,1709025039169,-226.05511992,0.00019178,2]
[315423703,1709025039178,-500.0,0.00019178,2]
[315423705,1709025039187,-1793.86,0.00019178,2]
[315423707,1709025039196,-491.01392198,0.00019178,2]
[315423709,1709025039205,-479.74109791,0.00019178,2]
[315423711,1709025039214,-2216.53,0.00019178,2]
[315423713,1709025039223,-500.0,0.00019178,2]
[315423715,1709025039232,-500.0,0.00019178,2]
[315423717,1709025039241,-500.0,0.00019178,2]
[315423719,1709025039250,-17144.14,0.00019178,2]
[315423721,1709025039259,-500.0,0.00019178,2]
[315423723,1709025039268,-500.0,0.00019178,2]
[315423725,1709025039278,-262.021544,0.00019178,2]
[315423727,1709025039287,-500.0,0.00019178,2]
[315423729,1709025039296,-500.0,0.00019178,2]
[315423731,1709025039306,-500.0,0.00019178,2]
[315423733,1709025039315,-500.0,0.00019178,2]
[315423735,1709025039324,-865.11,0.00019178,2]
[315423737,1709025039333,-865.11,0.00019178,2]
[315423739,1709025039342,-865.11,0.00019178,2]
[315423741,1709025039351,-865.11,0.00019178,2]
[315423743,1709025039360,-865.11,0.00019178,2]
[315423745,1709025039369,-500.0,0.00019178,2]
[315423747,1709025039379,-500.0,0.00019178,2]
[315423749,1709025039388,-865.11,0.00019178,2]
[315423751,1709025039397,-865.11,0.00019178,2]
[315423753,1709025039408,-865.11,0.00019178,2]
[315423755,1709025039417,-865.11,0.00019178,2]
[315423757,1709025039427,-865.11,0.00019178,2]
[315423759,1709025039436,-500.0,0.00019178,2]
[315423762,1709025039446,-500.0,0.00019178,2]
[315423764,1709025039455,-1670.77,0.00019178,2]
[315423766,1709025039464,-500.0,0.00019178,2]
[315423768,1709025039474,-501.34358401,0.00019178,2]
[315423769,1709025039487,-500.0,0.00019178,2]
[315423771,1709025039499,-500.0,0.00019178,2]
[315423773,1709025039509,-500.0,0.00019178,2]
[315423775,1709025039519,-500.0,0.00019178,2]
[315423777,1709025039529,-3299.85,0.00019178,2]
[315423779,1709025039538,-1245.4,0.00019178,2]
[315423781,1709025039547,-500.0,0.00019178,2]
[315423783,1709025039557,-1408.51,0.00019178,2]
[315423785,1709025039566,-295.01720244,0.00019178,2]
[315423787,1709025039575,-597.92,0.00019178,2]
[315423789,1709025039584,-500.0,0.00019178,2]
[315423791,1709025039594,-6409.87,0.00019178,2]
[315423793,1709025039603,-1717.3,0.00019178,2]
[315423795,1709025039613,-3271.57,0.00019178,2]
[315423797,1709025039622,-500.0,0.00019178,2]
[315423799,1709025039632,-2367.05,0.00019178,2]
[315423801,1709025039641,-16845.55,0.00019178,2]
[315423803,1709025039651,-4470.27,0.00019178,2]
[315423805,1709025039662,-500.0,0.00019178,2]
[315423807,1709025039672,-888.06,0.00019178,2]
[315423810,1709025039682,-2826.5,0.00019178,2]
[315423811,1709025039691,-669.0,0.00019178,2]
[315423814,1709025039701,-967.26,0.00019178,2]
[315423815,1709025039710,-500.0,0.00019178,2]
[315423818,1709025039719,-500.0,0.00019178,2]
[315423820,1709025039729,-694.82180753,0.00019178,2]
[315423822,1709025039737,-166.905245,0.00019178,2]
[315423824,1709025039747,-166.666666,0.00019178,2]
[315423825,1709025039756,-153.0,0.00019178,2]
[315423827,1709025039765,-153.0,0.00019178,2]
[315423829,1709025039774,-153.0,0.00019178,2]
[315423832,1709025039786,-153.0,0.00019178,2]
[315423834,1709025039795,-153.0,0.000192,2]
[315423836,1709025039808,-747.13512592,0.00019225,2]
[315423838,1709025039817,-153.0,0.000193,2]
[315423839,1709025039826,-200.6117409,0.000193,2]
[315423841,1709025039835,-306.0,0.000193,2]
[315423843,1709025039844,-153.0,0.000193,2]
[315423845,1709025039854,-1431.5433128,0.00019352,2]
[315423847,1709025039862,-153.0,0.0001937,2]
[315423849,1709025039871,-306.0,0.0001937,2]
[315423851,1709025039880,-153.0,0.0001937,2]
[315423853,1709025039889,-153.0,0.0001937,2]
[315423855,1709025039899,-349.6153443,0.0001937,2]
[315423857,1709025039909,-153.0,0.0001937,2]
[315423859,1709025039918,-153.0,0.0001937,2]
[315423861,1709025039928,-306.0,0.0001937,2]
[315423863,1709025039937,-747.13512592,0.0001945,2]
[315423865,1709025039946,-865.11,0.00019451,2]
[315423868,1709025039955,-865.11,0.00019451,2]
[315423870,1709025039965,-500.0,0.00019452,2]
[315423871,1709025039974,-166.56,0.00019452,2]
[315423874,1709025039983,-500.0,0.00019452,2]
[315423876,1709025039993,-500.0,0.00019452,2]
[315423878,1709025040002,-1192.66,0.00019452,2]
[315423880,1709025040011,-500.0,0.00019452,2]
[315423881,1709025040019,-501.70867165,0.00019452,2]
[315423883,1709025040028,-500.0,0.00019452,2]
[315423886,1709025040038,-500.0,0.00019452,2]
[315423888,1709025040047,-502.56998248,0.00019452,2]
[315423889,1709025040056,-500.0,0.00019452,2]
[315423891,1709025040065,-500.0,0.00019452,2]
[315423893,1709025040074,-671.93,0.00019452,2]
[315423895,1709025040083,-1422.92,0.00019452,2]
[315423897,1709025040093,-500.0,0.00019452,2]
[315423900,1709025040102,-500.0,0.00019452,2]
[315423902,1709025040111,-500.0,0.00019452,2]
[315423904,1709025040121,-745.35,0.00019452,2]
[315423906,1709025040130,-559.55,0.00019452,2]
[315423908,1709025040140,-500.0,0.00019452,2]
[315423909,1709025040149,-500.0,0.00019452,2]
[315423923,1709025040260,-241.83685928,0.00019452,2]
[315423925,1709025040270,-500.0,0.00019452,2]
[315423927,1709025040279,-500.0,0.00019452,2]
[315423929,1709025040288,-500.0,0.00019452,2]
[315423931,1709025040297,-500.0,0.00019452,2]
[315423933,1709025040307,-500.0,0.00019452,2]
[315423935,1709025040316,-500.0,0.00019452,2]
[315423937,1709025040325,-606.64,0.00019452,2]
[315423939,1709025040334,-540.2,0.00019452,2]
[315423941,1709025040344,-1246.71,0.00019452,2]
[315423943,1709025040353,-500.0,0.00019452,2]
[315423945,1709025040362,-500.0,0.00019452,2]
[315423947,1709025040371,-500.0,0.00019452,2]
[315423949,1709025040380,-500.0,0.00019452,2]
[315423951,1709025040389,-500.0,0.00019452,2]
[315423953,1709025040399,-1527.96,0.00019452,2]
[315423955,1709025040409,-500.0,0.00019452,2]
[315423957,1709025040418,-500.0,0.00019452,2]
[315423959,1709025040427,-1428.93,0.00019452,2]
[315423961,1709025040436,-500.0,0.00019452,2]
[315423963,1709025040445,-395.16181797,0.00019452,2]
[315423965,1709025040454,-500.0,0.00019452,2]
[315423967,1709025040464,-500.0,0.00019452,2]
[315423969,1709025040474,-500.0,0.00019452,2]
[315423971,1709025040483,-500.0,0.00019452,2]
[315423973,1709025040493,-317.207108,0.00019452,2]
[315423975,1709025040503,-500.0,0.00019452,2]
[315423977,1709025040512,-883.11,0.00019452,2]
[315423979,1709025040521,-500.0,0.00019452,2]
[315423981,1709025040530,-500.0,0.00019452,2]
[315423983,1709025040539,-500.0,0.00019452,2]
[315423985,1709025040549,-500.0,0.00019452,2]
[315423987,1709025040558,-169.21456967,0.00019452,2]
[315423989,1709025040567,-398.21029264,0.00019452,2]
[315423991,1709025040577,-609.97,0.00019452,2]
[315423992,1709025040585,-500.0,0.00019452,2]
[315423993,1709025040595,-500.0,0.00019452,2]
[315423994,1709025040604,-500.0,0.00019452,2]
[315423995,1709025040615,-802.54,0.00019452,2]
[315423996,1709025040624,-1552.8,0.00019452,2]
[315423997,1709025040634,-500.0,0.00019452,2]
[315423998,1709025040643,-2270.51,0.00019452,2]
[315423999,1709025040652,-500.0,0.00019452,2]
[315424000,1709025040663,-500.0,0.00019452,2]
[315424001,1709025040672,-500.0,0.00019452,2]
[315424002,1709025040682,-700.38,0.00019452,2]
[315424003,1709025040693,-1290.74,0.00019452,2]
[315424004,1709025040704,-1738.0,0.00019452,2]
[315424005,1709025040714,-500.0,0.00019452,2]
[315424006,1709025040724,-502.32182453,0.00019452,2]
[315424008,1709025040735,-500.0,0.00019452,2]
[315424010,1709025040744,-1276.96,0.00019452,2]
[315424011,1709025040754,-1002.42085392,0.00019452,2]
[315424012,1709025040763,-8600.21,0.00019452,2]
[315424013,1709025040772,-495.60629693,0.00019452,2]
[315424014,1709025040781,-3327.33,0.00019452,2]
[315424015,1709025040790,-500.0,0.00019452,2]
[315424016,1709025040799,-500.0,0.00019452,2]
[315424017,1709025040809,-500.0,0.00019452,2]
[315424018,1709025040818,-500.0,0.00019452,2]
[315424019,1709025040828,-1793.86,0.00019452,2]
[315424020,1709025040837,-2216.53,0.00019452,2]
[315424021,1709025040846,-500.0,0.00019452,2]
[315424022,1709025040855,-500.0,0.00019452,2]
[315424023,1709025040865,-369.76023936,0.00019452,2]
[315424024,1709025040874,-17144.14,0.00019452,2]
[315424025,1709025040883,-500.0,0.00019452,2]
[315424026,1709025040892,-500.0,0.00019452,2]
[315424027,1709025040903,-500.0,0.00019452,2]
[315424028,1709025040914,-500.0,0.00019452,2]
[315424029,1709025040924,-500.0,0.00019452,2]
[315424030,1709025040933,-401.01611644,0.00019452,2]
[315424031,1709025040942,-500.0,0.00019452,2]
[315424032,1709025040952,-533.40617444,0.00019452,2]
[315424033,1709025040963,-1670.77,0.00019452,2]
[315424034,1709025040972,-500.0,0.00019452,2]
[315424035,1709025040982,-500.0,0.00019452,2]
[315424036,1709025040991,-466.40052004,0.00019452,2]
[315424037,1709025041001,-500.0,0.00019452,2]
[315424038,1709025041010,-3299.85,0.00019452,2]
[315424039,1709025041019,-1245.4,0.00019452,2]
[315424040,1709025041030,-500.0,0.00019452,2]
[315424041,1709025041039,-1408.51,0.00019452,2]
[315424042,1709025041048,-597.92,0.00019452,2]
[315424043,1709025041057,-6409.87,0.00019452,2]
[315424044,1709025041066,-1717.3,0.00019452,2]
[315424045,1709025041076,-3271.57,0.00019452,2]
[315424046,1709025041085,-500.0,0.00019452,2]
[315424047,1709025041093,-2367.05,0.00019452,2]
[315424048,1709025041103,-16845.55,0.00019452,2]
[315424049,1709025041112,-4470.27,0.00019452,2]
[315424050,1709025041121,-500.0,0.00019452,2]
[315424051,1709025041131,-888.06,0.00019452,2]
[315424052,1709025041140,-2826.5,0.00019452,2]
[315424053,1709025041149,-669.0,0.00019452,2]
[315424054,1709025041158,-967.26,0.00019452,2]
[315424055,1709025041167,-500.0,0.00019452,2]
[315424056,1709025041176,-500.0,0.00019452,2]
[315424057,1709025041185,-153.0,0.00019452,2]
[315424058,1709025041194,-153.0,0.00019452,2]
[315424059,1709025041203,-153.0,0.00019452,2]
[315424060,1709025041212,-153.0,0.00019452,2]
[315424061,1709025041223,-153.0,0.00019452,2]
[315424062,1709025041232,-153.0,0.00019452,2]
[315424063,1709025041242,-153.0,0.00019452,2]
[315424064,1709025041251,-153.0,0.000195,2]
[315424065,1709025041260,-153.0,0.000195,2]
[315424066,1709025041269,-1431.54331277,0.00019524,2]
[315424067,1709025041279,-166.666666,0.00019627,2]
[315424068,1709025041287,-747.13512592,0.00019675,2]
[315424069,1709025041296,-1431.54331277,0.00019696,2]
[315424070,1709025041305,-153.0,0.000197,2]
[315424071,1709025041314,-200.6117409,0.000197,2]
[315424072,1709025041323,-153.0,0.000197,2]
[315424073,1709025041333,-200.6117409,0.000197,2]
[315424074,1709025041343,-200.6117409,0.000197,2]
[315424075,1709025041353,-200.6117409,0.000197,2]
[315424076,1709025041363,-200.6117409,0.000197,2]
[315424077,1709025041372,-153.0,0.000197,2]
[315424078,1709025041382,-865.11,0.00019725,2]
[315424079,1709025041393,-865.11,0.00019725,2]
[315424080,1709025041403,-865.11,0.00019725,2]
[315424081,1709025041414,-500.0,0.00019726,2]
[315424082,1709025041423,-500.0,0.00019726,2]
[315424083,1709025041433,-500.0,0.00019726,2]
[315424084,1709025041448,-1192.66,0.00019726,2]
[315424086,1709025041457,-500.0,0.00019726,2]
[315424087,1709025041467,-500.0,0.00019726,2]
[315424088,1709025041478,-500.0,0.00019726,2]
[315424089,1709025041489,-500.0,0.00019726,2]
[315424090,1709025041503,-500.0,0.00019726,2]
[315424091,1709025041514,-671.93,0.00019726,2]
[315424092,1709025041523,-1422.92,0.00019726,2]
[315424093,1709025041533,-500.0,0.00019726,2]
[315424094,1709025041542,-548.95221423,0.00019726,2]
[315424095,1709025041551,-500.0,0.00019726,2]
[315424096,1709025041561,-745.35,0.00019726,2]
[315424097,1709025041571,-559.55,0.00019726,2]
[315424098,1709025041581,-282.98479173,0.00019726,2]
[315424099,1709025041590,-500.0,0.00019726,2]
[315424100,1709025041600,-500.0,0.00019726,2]
[315424101,1709025041609,-333.04255885,0.00019726,2]
[315424102,1709025041618,-500.0,0.00019726,2]
[315424103,1709025041628,-500.0,0.00019726,2]
[315424104,1709025041637,-606.64,0.00019726,2]
[315424105,1709025041646,-540.2,0.00019726,2]
[315424106,1709025041657,-1246.71,0.00019726,2]
[315424107,1709025041666,-500.0,0.00019726,2]
[315424108,1709025041677,-448.32673264,0.00019726,2]
[315424109,1709025041686,-500.0,0.00019726,2]
[315424110,1709025041696,-500.0,0.00019726,2]
[315424111,1709025041705,-1527.96,0.00019726,2]
[315424112,1709025041714,-500.0,0.00019726,2]
[315424113,1709025041724,-1428.93,0.00019726,2]
[315424114,1709025041734,-500.0,0.00019726,2]
[315424115,1709025041743,-552.56513057,0.00019726,2]
[315424116,1709025041753,-500.0,0.00019726,2]
[315424117,1709025041762,-382.1661985,0.00019726,2]
[315424118,1709025041771,-883.11,0.00019726,2]
[315424119,1709025041780,-500.0,0.00019726,2]
[315424120,1709025041789,-547.67624046,0.00019726,2]
[315424121,1709025041798,-500.0,0.00019726,2]
[315424122,1709025041808,-500.0,0.00019726,2]
[315424123,1709025041816,-609.97,0.00019726,2]
[315424124,1709025041826,-500.0,0.00019726,2]
[315424125,1709025041835,-500.0,0.00019726,2]
[315424126,1709025041844,-802.54,0.00019726,2]
[315424127,1709025041853,-1552.8,0.00019726,2]
[315424128,1709025041863,-517.68,0.00019726,2]
[315424129,1709025041872,-2270.51,0.00019726,2]
[315424130,1709025041881,-500.0,0.00019726,2]
[315424131,1709025041890,-500.0,0.00019726,2]
[315424132,1709025041899,-500.0,0.00019726,2]
[315424133,1709025041908,-700.38,0.00019726,2]
[315424134,1709025041918,-1290.74,0.00019726,2]
[315424135,1709025041927,-1738.0,0.00019726,2]
[315424136,1709025041937,-500.0,0.00019726,2]
[315424137,1709025041946,-1276.96,0.00019726,2]
[315424138,1709025041955,-8600.21,0.00019726,2]
[315424139,1709025041964,-3327.33,0.00019726,2]
[315424140,1709025041974,-500.0,0.00019726,2]
[315424141,1709025041983,-500.0,0.00019726,2]
[315424142,1709025041992,-500.0,0.00019726,2]
[315424143,1709025042002,-1793.86,0.00019726,2]
[315424144,1709025042011,-2216.53,0.00019726,2]
[315424145,1709025042020,-500.0,0.00019726,2]
[315424146,1709025042029,-17144.14,0.00019726,2]
[315424147,1709025042039,-500.0,0.00019726,2]
[315424148,1709025042048,-500.0,0.00019726,2]
[315424149,1709025042057,-500.0,0.00019726,2]
[315424150,1709025042065,-587.72307026,0.00019726,2]
[315424151,1709025042075,-1670.77,0.00019726,2]
[315424152,1709025042083,-500.0,0.00019726,2]
[315424153,1709025042094,-500.0,0.00019726,2]
[315424154,1709025042105,-500.0,0.00019726,2]
[315424155,1709025042115,-1245.4,0.00019726,2]
[315424156,1709025042125,-500.0,0.00019726,2]
[315424157,1709025042134,-1408.51,0.00019726,2]
[315424158,1709025042145,-597.92,0.00019726,2]
[315424159,1709025042154,-6409.87,0.00019726,2]
[315424160,1709025042165,-1717.3,0.00019726,2]
[315424161,1709025042174,-3271.57,0.00019726,2]
[315424162,1709025042183,-500.0,0.00019726,2]
[315424163,1709025042193,-2367.05,0.00019726,2]
[315424164,1709025042202,-16845.55,0.00019726,2]
[315424165,1709025042211,-4470.27,0.00019726,2]
[315424166,1709025042221,-500.0,0.00019726,2]
[315424167,1709025042230,-888.06,0.00019726,2]
[315424168,1709025042240,-2826.5,0.00019726,2]
[315424169,1709025042249,-669.0,0.00019726,2]
[315424170,1709025042259,-967.26,0.00019726,2]
[315424171,1709025042268,-336.69898198,0.00019726,2]
[315424172,1709025042278,-865.11,0.00019799,2]
[315424173,1709025042287,-75253.40736435,0.000198,2]
[315424174,1709025042296,-662.66559788,0.00019834,2]
[315424175,1709025042305,-1431.54331277,0.00019868,2]
[315424176,1709025042315,-865.11,0.00019898,2]
[315424177,1709025042324,-225.09983032,0.000199,2]
[315424178,1709025042334,-747.13512592,0.000199,2]
[315424179,1709025042344,-500.0,0.00019916,2]
[315424180,1709025042354,-153.0,0.00019918,2]
[315424181,1709025042364,-153.0,0.00019918,2]
[315424182,1709025042374,-160.0,0.00019999,2]
[315424183,1709025042385,-865.11,0.00019999,2]
[315424184,1709025042395,-865.11,0.00019999,2]
[315424185,1709025042405,-865.11,0.00019999,2]
[315424186,1709025042417,-865.11,0.00019999,2]
[315424187,1709025042427,-865.11,0.00019999,2]